[Event "*** Titled Tuesday Blitz"]
[Site "Chess.com"]
[Date "2019.09.03"]
[Round "8"]
[White "MikeSailer"]
[Black "Al_Shima"]
[Result "0-1"]
[WhiteElo "2100"]
[BlackElo "2440"]
[TimeControl "180+2"]
[EndTime "16:53:10 PDT"]
[Termination "Al_Shima won by checkmate"]

1. b4 {[%clk 0:03:01.9]} 1... c6 {[%clk 0:02:59.1]} 2. e3 {[%clk 0:03:01.9]}
2... f5 {[%clk 0:02:59.3]} 3. Nf3 {[%clk 0:03:01.4]} 3... Nf6 {[%clk 0:02:59.3]}
4. Bb2 {[%clk 0:03:00.7]} 4... e6 {[%clk 0:03:00.2]} 5. c4 {[%clk 0:02:59.1]}
5... d5 {[%clk 0:03:00.7]} 6. b5 {[%clk 0:02:56.9]} 6... Bd6 {[%clk 0:03:00.2]}
7. Be2 {[%clk 0:02:55.9]} 7... O-O {[%clk 0:03:00.5]} 8. O-O {[%clk 0:02:57]}
8... a6 {[%clk 0:03:00.4]} 9. a4 {[%clk 0:02:57.6]} 9... Qe7 {[%clk 0:02:57.3]}
10. d4 {[%clk 0:02:50.1]} 10... axb5 {[%clk 0:02:57.3]} 11. axb5 {[%clk
0:02:50.1]} 11... Rxa1 {[%clk 0:02:57.7]} 12. Bxa1 {[%clk 0:02:51.6]} 12... Ne4
{[%clk 0:02:47.1]} 13. Nbd2 {[%clk 0:02:44.9]} 13... Nd7 {[%clk 0:02:43.3]} 14.
Ne5 {[%clk 0:02:36.3]} 14... Ndf6 {[%clk 0:02:20.2]} 15. bxc6 {[%clk 0:02:33.6]}
15... bxc6 {[%clk 0:02:17]} 16. Nxc6 {[%clk 0:02:33.6]} 16... Qc7 {[%clk
0:02:03.6]} 17. Ne5 {[%clk 0:02:17.3]} 17... Nxd2 {[%clk 0:01:53.5]} 18. Qxd2
{[%clk 0:02:16.5]} 18... dxc4 {[%clk 0:01:43.8]} 19. f4 {[%clk 0:01:42.9]} 19...
Ne4 {[%clk 0:01:38.1]} 20. Qc2 {[%clk 0:01:42.5]} 20... Bxe5 {[%clk 0:01:35.7]}
21. fxe5 {[%clk 0:01:39.2]} 21... Ba6 {[%clk 0:01:36.2]} 22. Rc1 {[%clk
0:01:20.1]} 22... Rc8 {[%clk 0:01:36.1]} 23. Bf3 {[%clk 0:01:21.3]} 23... Bb7
{[%clk 0:01:35.1]} 24. Be2 {[%clk 0:01:03.2]} 24... Bd5 {[%clk 0:01:35.4]} 25.
Bb2 {[%clk 0:00:58.9]} 25... Qe7 {[%clk 0:01:24.8]} 26. Ra1 {[%clk 0:00:58.5]}
26... Qg5 {[%clk 0:01:23]} 27. Bf3 {[%clk 0:00:43.8]} 27... Qxe3+ {[%clk
0:01:22.5]} 28. Kh1 {[%clk 0:00:45.5]} 28... Nf2+ {[%clk 0:01:22.4]} 29. Kg1
{[%clk 0:00:44.6]} 29... Nd1+ {[%clk 0:01:12.3]} 30. Kf1 {[%clk 0:00:39.2]}
30... Bxf3 {[%clk 0:01:08.1]} 31. gxf3 {[%clk 0:00:38.6]} 31... Qxf3+ {[%clk
0:01:08.7]} 32. Ke1 {[%clk 0:00:37.6]} 32... Ne3 {[%clk 0:01:03.9]} 33. Qe2
{[%clk 0:00:32.4]} 33... Qe4 {[%clk 0:00:54.2]} 34. Rc1 {[%clk 0:00:19]} 34...
f4 {[%clk 0:00:50.5]} 35. Rc3 {[%clk 0:00:11.4]} 35... Rb8 {[%clk 0:00:47.1]}
36. Bc1 {[%clk 0:00:05.6]} 36... Rb1 {[%clk 0:00:43]} 37. Qh5 {[%clk 0:00:05.7]}
37... Qh1+ {[%clk 0:00:13.8]} 38. Ke2 {[%clk 0:00:02.9]} 38... Qd1+ {[%clk
0:00:13]} 39. Kf2 {[%clk 0:00:03.9]} 39... Qf1# {[%clk 0:00:13.7]} 0-1

[Event "*** Titled Tuesday Blitz"]
[Site "Chess.com"]
[Date "2019.09.03"]
[Round "8"]
[White "aa175"]
[Black "iLuusions"]
[Result "1-0"]
[WhiteElo "2294"]
[BlackElo "2582"]
[TimeControl "180+2"]
[EndTime "16:53:12 PDT"]
[Termination "aa175 won by resignation"]

1. d4 {[%clk 0:03:01.9]} 1... Nf6 {[%clk 0:02:58.6]} 2. Bf4 {[%clk 0:03:02.5]}
2... e6 {[%clk 0:02:58.5]} 3. e3 {[%clk 0:03:03.5]} 3... c5 {[%clk 0:02:57.4]}
4. Nf3 {[%clk 0:03:02.8]} 4... d5 {[%clk 0:02:58.5]} 5. Nbd2 {[%clk 0:03:01.8]}
5... Bd6 {[%clk 0:02:59.7]} 6. Bg3 {[%clk 0:03:02.4]} 6... Qc7 {[%clk
0:02:57.8]} 7. Ne5 {[%clk 0:02:50.9]} 7... Nc6 {[%clk 0:02:48.8]} 8. Nxc6 {[%clk
0:02:40.1]} 8... Qxc6 {[%clk 0:02:35.6]} 9. c3 {[%clk 0:02:35.9]} 9... b6 {[%clk
0:02:29.3]} 10. a4 {[%clk 0:02:33.6]} 10... a6 {[%clk 0:02:28.5]} 11. Nf3 {[%clk
0:02:23.9]} 11... Ne4 {[%clk 0:02:23.9]} 12. Bd3 {[%clk 0:02:21.9]} 12... O-O
{[%clk 0:02:07.6]} 13. Bxe4 {[%clk 0:02:20.2]} 13... dxe4 {[%clk 0:02:08.2]} 14.
Ne5 {[%clk 0:02:18.4]} 14... Qc7 {[%clk 0:02:06.7]} 15. Qh5 {[%clk 0:02:14.9]}
15... g6 {[%clk 0:01:56.3]} 16. Qh6 {[%clk 0:02:10.6]} 16... Rd8 {[%clk
0:01:46.7]} 17. Bh4 {[%clk 0:01:57.6]} 17... Be7 {[%clk 0:01:35.2]} 18. Bxe7
{[%clk 0:01:57.7]} 18... Qxe7 {[%clk 0:01:31.2]} 19. Nc6 {[%clk 0:01:58.7]}
19... Qf8 {[%clk 0:01:32.5]} 20. Qh4 {[%clk 0:01:45.3]} 20... Re8 {[%clk
0:01:11.2]} 21. Ne5 {[%clk 0:01:26.2]} 21... f6 {[%clk 0:01:04.1]} 22. Qxe4
{[%clk 0:01:25.2]} 22... Ra7 {[%clk 0:00:58.6]} 23. Nf3 {[%clk 0:01:21.9]} 23...
e5 {[%clk 0:00:36.7]} 24. dxe5 {[%clk 0:01:18.2]} 24... Bf5 {[%clk 0:00:36.5]}
25. Qc4+ {[%clk 0:01:11.6]} 25... Be6 {[%clk 0:00:36.4]} 26. Qf4 {[%clk
0:01:07.1]} 26... Rf7 {[%clk 0:00:30.5]} 27. exf6 {[%clk 0:00:52.9]} 27... Rxf6
{[%clk 0:00:30.3]} 28. Qc7 {[%clk 0:00:51]} 28... Bc4 {[%clk 0:00:28.5]} 29.
O-O-O {[%clk 0:00:48.6]} 29... Re7 {[%clk 0:00:16.4]} 30. Rd7 {[%clk 0:00:48.1]}
30... Rff7 {[%clk 0:00:12.2]} 31. Rhd1 {[%clk 0:00:24.2]} 31... Bb3 {[%clk
0:00:08]} 32. Rxe7 {[%clk 0:00:19.5]} 32... Rxe7 {[%clk 0:00:09]} 33. Rd7 {[%clk
0:00:17.2]} 33... Rxd7 {[%clk 0:00:06.4]} 34. Qxd7 {[%clk 0:00:19.1]} 34... Qf5
{[%clk 0:00:08.1]} 35. Qxf5 {[%clk 0:00:17.7]} 35... gxf5 {[%clk 0:00:08.7]} 36.
a5 {[%clk 0:00:10]} 36... bxa5 {[%clk 0:00:09]} 37. Ne5 {[%clk 0:00:09.6]} 37...
Kg7 {[%clk 0:00:06.6]} 38. Nd7 {[%clk 0:00:09.7]} 38... c4 {[%clk 0:00:04]} 39.
Nc5 {[%clk 0:00:07.6]} 39... Ba4 {[%clk 0:00:05]} 40. Nxa4 {[%clk 0:00:08.2]}
1-0

[Event "*** Titled Tuesday Blitz"]
[Site "Chess.com"]
[Date "2019.09.03"]
[Round "8"]
[White "patrisiii123"]
[Black "GMJimKnopf"]
[Result "1-0"]
[WhiteElo "2468"]
[BlackElo "2727"]
[TimeControl "180+2"]
[EndTime "16:53:13 PDT"]
[Termination "patrisiii123 won by checkmate"]

1. e4 {[%clk 0:03:00.8]} 1... g6 {[%clk 0:02:58]} 2. d4 {[%clk 0:02:56]} 2... c6
{[%clk 0:02:59.9]} 3. Bd3 {[%clk 0:02:53.7]} 3... d5 {[%clk 0:03:01.8]} 4. exd5
{[%clk 0:02:54.9]} 4... cxd5 {[%clk 0:03:03.5]} 5. c3 {[%clk 0:02:56]} 5... Bg7
{[%clk 0:03:05.4]} 6. h3 {[%clk 0:02:56.2]} 6... Nc6 {[%clk 0:03:07.3]} 7. Nf3
{[%clk 0:02:57.6]} 7... Nf6 {[%clk 0:03:08.2]} 8. O-O {[%clk 0:02:58.3]} 8...
O-O {[%clk 0:03:10.1]} 9. Re1 {[%clk 0:02:59.6]} 9... Bf5 {[%clk 0:03:12]} 10.
Bxf5 {[%clk 0:03:00.3]} 10... gxf5 {[%clk 0:03:13.9]} 11. Nbd2 {[%clk
0:03:01.6]} 11... e6 {[%clk 0:03:15.5]} 12. Nf1 {[%clk 0:03:02.9]} 12... Ne4
{[%clk 0:03:16.7]} 13. Bf4 {[%clk 0:03:03.8]} 13... Kh8 {[%clk 0:03:17.2]} 14.
Ne5 {[%clk 0:02:59.4]} 14... Nxe5 {[%clk 0:03:18.3]} 15. Bxe5 {[%clk 0:03:01.3]}
15... Rg8 {[%clk 0:03:19.3]} 16. Bxg7+ {[%clk 0:02:55.8]} 16... Rxg7 {[%clk
0:03:21.2]} 17. f3 {[%clk 0:02:57.2]} 17... Ng5 {[%clk 0:03:17.6]} 18. Kh1
{[%clk 0:02:52.8]} 18... Nxh3 {[%clk 0:03:10.3]} 19. gxh3 {[%clk 0:02:49.8]}
19... Qg5 {[%clk 0:03:11.5]} 20. Ne3 {[%clk 0:02:39.9]} 20... Qg3 {[%clk
0:03:06.6]} 21. Qe2 {[%clk 0:02:40]} 21... Rag8 {[%clk 0:02:49.4]} 22. Ng4
{[%clk 0:02:20.2]} 22... fxg4 {[%clk 0:02:33.4]} 23. hxg4 {[%clk 0:02:22.1]}
23... Qh3+ {[%clk 0:02:24.1]} 24. Kg1 {[%clk 0:02:21.4]} 24... Rxg4+ {[%clk
0:02:00.1]} 25. fxg4 {[%clk 0:02:21.1]} 25... Rxg4+ {[%clk 0:02:02]} 26. Qxg4
{[%clk 0:02:22.2]} 26... Qxg4+ {[%clk 0:02:03.9]} 27. Kf2 {[%clk 0:02:22.8]}
27... Qf4+ {[%clk 0:02:04.9]} 28. Ke2 {[%clk 0:02:23.7]} 28... Qh2+ {[%clk
0:02:03.4]} 29. Kd3 {[%clk 0:02:23.5]} 29... Qxb2 {[%clk 0:02:02.7]} 30. a4
{[%clk 0:02:22.1]} 30... Qg2 {[%clk 0:01:53.8]} 31. Re2 {[%clk 0:02:18.4]} 31...
Qf3+ {[%clk 0:01:50.3]} 32. Re3 {[%clk 0:02:19.8]} 32... Qf5+ {[%clk 0:01:51.1]}
33. Kd2 {[%clk 0:02:20.3]} 33... h5 {[%clk 0:01:49.1]} 34. Rh1 {[%clk
0:02:11.5]} 34... Qf2+ {[%clk 0:01:41.2]} 35. Re2 {[%clk 0:02:10.2]} 35... Qf4+
{[%clk 0:01:39.8]} 36. Kc2 {[%clk 0:02:11.1]} 36... Qf5+ {[%clk 0:01:30.4]} 37.
Kb2 {[%clk 0:02:10.1]} 37... Kg7 {[%clk 0:01:30.5]} 38. Rg2+ {[%clk 0:01:55.1]}
38... Kh6 {[%clk 0:01:31.3]} 39. Rg8 {[%clk 0:01:50.6]} 39... Qh7 {[%clk
0:01:05.2]} 40. Rhg1 {[%clk 0:01:46.7]} 40... f5 {[%clk 0:00:32.8]} 41. Re8
{[%clk 0:01:37.8]} 41... h4 {[%clk 0:00:27.4]} 42. Rxe6+ {[%clk 0:01:12.3]}
42... Kh5 {[%clk 0:00:28.2]} 43. Re8 {[%clk 0:01:07.9]} 43... h3 {[%clk
0:00:16.1]} 44. Re3 {[%clk 0:00:31.6]} 44... f4 {[%clk 0:00:14.1]} 45. Rxh3#
{[%clk 0:00:31.4]} 1-0

[Event "*** Titled Tuesday Blitz"]
[Site "Chess.com"]
[Date "2019.09.03"]
[Round "8"]
[White "chessking2151"]
[Black "chess3054"]
[Result "1-0"]
[WhiteElo "2616"]
[BlackElo "2486"]
[TimeControl "180+2"]
[EndTime "16:53:21 PDT"]
[Termination "chessking2151 won by checkmate"]

1. Nf3 {[%clk 0:02:51.9]} 1... Nf6 {[%clk 0:03:00.7]} 2. c4 {[%clk 0:02:48.2]}
2... b6 {[%clk 0:02:55.9]} 3. g3 {[%clk 0:02:48.5]} 3... Bb7 {[%clk 0:02:56.4]}
4. Bg2 {[%clk 0:02:48.7]} 4... e6 {[%clk 0:02:57.9]} 5. O-O {[%clk 0:02:49]}
5... Be7 {[%clk 0:02:59.2]} 6. d4 {[%clk 0:02:49.4]} 6... O-O {[%clk 0:02:59.9]}
7. Re1 {[%clk 0:02:49.4]} 7... Na6 {[%clk 0:03:00.3]} 8. a3 {[%clk 0:02:44.7]}
8... d5 {[%clk 0:02:35.5]} 9. cxd5 {[%clk 0:02:41.6]} 9... exd5 {[%clk
0:02:32.1]} 10. Nc3 {[%clk 0:02:33.9]} 10... c5 {[%clk 0:02:30.4]} 11. Bf4
{[%clk 0:02:30.7]} 11... Nc7 {[%clk 0:02:26.2]} 12. Qc2 {[%clk 0:02:28.1]} 12...
Ne6 {[%clk 0:02:25.9]} 13. dxc5 {[%clk 0:02:27.6]} 13... bxc5 {[%clk 0:02:27.8]}
14. Be5 {[%clk 0:02:20.5]} 14... Qa5 {[%clk 0:02:20.1]} 15. Rad1 {[%clk
0:02:19.2]} 15... Rfd8 {[%clk 0:02:20.1]} 16. Nd2 {[%clk 0:02:16.5]} 16... Ng4
{[%clk 0:01:55]} 17. Nc4 {[%clk 0:02:11.1]} 17... dxc4 {[%clk 0:01:43.6]} 18.
Bxb7 {[%clk 0:02:10.1]} 18... Nxe5 {[%clk 0:01:43.4]} 19. Bxa8 {[%clk
0:02:10.7]} 19... Rxa8 {[%clk 0:01:45.3]} 20. Qe4 {[%clk 0:02:10.6]} 20... Rb8
{[%clk 0:01:28.2]} 21. Qxe5 {[%clk 0:02:10.3]} 21... Rxb2 {[%clk 0:01:29.8]} 22.
Nd5 {[%clk 0:02:09.6]} 22... Rb7 {[%clk 0:01:21]} 23. Nxe7+ {[%clk 0:02:09.7]}
23... Rxe7 {[%clk 0:01:20.1]} 24. Qb8+ {[%clk 0:02:00.5]} 24... Nf8 {[%clk
0:01:19.8]} 25. Kf1 {[%clk 0:02:01.1]} 25... Qc7 {[%clk 0:01:01.8]} 26. Rd8
{[%clk 0:01:53.5]} 26... Qxb8 {[%clk 0:01:01.8]} 27. Rxb8 {[%clk 0:01:54.3]}
27... g6 {[%clk 0:01:03.1]} 28. Rc1 {[%clk 0:01:55.3]} 28... Kg7 {[%clk
0:01:04.1]} 29. Rxc4 {[%clk 0:01:56]} 29... Ne6 {[%clk 0:01:05.3]} 30. e3 {[%clk
0:01:55.4]} 30... Kf6 {[%clk 0:01:02.4]} 31. Ke2 {[%clk 0:01:54.1]} 31... Ke5
{[%clk 0:01:02.8]} 32. Rb1 {[%clk 0:01:45.8]} 32... Kd5 {[%clk 0:01:02.7]} 33.
Ra4 {[%clk 0:01:45.5]} 33... Rc7 {[%clk 0:00:56]} 34. Ra6 {[%clk 0:01:43.9]}
34... Ke5 {[%clk 0:00:48]} 35. f4+ {[%clk 0:01:43]} 35... Kf6 {[%clk 0:00:47.4]}
36. Rc1 {[%clk 0:01:38.2]} 36... h5 {[%clk 0:00:40.7]} 37. e4 {[%clk 0:01:37.7]}
37... Ke7 {[%clk 0:00:36.4]} 38. e5 {[%clk 0:01:37.5]} 38... Nd4+ {[%clk
0:00:34.6]} 39. Ke3 {[%clk 0:01:36]} 39... Ne6 {[%clk 0:00:27.9]} 40. Rb1 {[%clk
0:01:33.9]} 40... c4 {[%clk 0:00:25.2]} 41. Rd6 {[%clk 0:01:31.3]} 41... c3
{[%clk 0:00:25.2]} 42. Rc1 {[%clk 0:01:29.6]} 42... c2 {[%clk 0:00:16.6]} 43.
Rd2 {[%clk 0:01:29.7]} 43... Rc3+ {[%clk 0:00:16.1]} 44. Rd3 {[%clk 0:01:30.5]}
44... Rc7 {[%clk 0:00:13.1]} 45. Kd2 {[%clk 0:01:31.7]} 45... Nc5 {[%clk
0:00:13.1]} 46. Re3 {[%clk 0:01:32.2]} 46... Rd7+ {[%clk 0:00:08.7]} 47. Kxc2
{[%clk 0:01:33]} 47... Ne6 {[%clk 0:00:10.2]} 48. Rd1 {[%clk 0:01:33.5]} 48...
Rc7+ {[%clk 0:00:10.5]} 49. Kd2 {[%clk 0:01:34.1]} 49... Nd4 {[%clk 0:00:11.2]}
50. Rd3 {[%clk 0:01:34.6]} 50... Rc2+ {[%clk 0:00:10.5]} 51. Ke3 {[%clk
0:01:35.7]} 51... Nf5+ {[%clk 0:00:09.8]} 52. Kf3 {[%clk 0:01:37.1]} 52... Rxh2
{[%clk 0:00:09.7]} 53. Rd8 {[%clk 0:01:38.1]} 53... Ra2 {[%clk 0:00:06.5]} 54.
R1d7+ {[%clk 0:01:37.5]} 54... Ke6 {[%clk 0:00:08.1]} 55. Rxa7 {[%clk
0:01:37.2]} 55... h4 {[%clk 0:00:06.4]} 56. g4 {[%clk 0:01:31.9]} 56... h3
{[%clk 0:00:07.2]} 57. gxf5+ {[%clk 0:01:31.8]} 57... Kxf5 {[%clk 0:00:09]} 58.
Rxf7+ {[%clk 0:01:31.8]} 58... Ke6 {[%clk 0:00:10.4]} 59. Rf6+ {[%clk
0:01:25.2]} 59... Ke7 {[%clk 0:00:11.5]} 60. Rh8 {[%clk 0:01:26.6]} 60... h2
{[%clk 0:00:09.2]} 61. Rxg6 {[%clk 0:01:26.2]} 61... Kf7 {[%clk 0:00:10.2]} 62.
Rgh6 {[%clk 0:01:25.9]} 62... Rxa3+ {[%clk 0:00:10.9]} 63. Ke4 {[%clk
0:01:25.3]} 63... Ra4+ {[%clk 0:00:10.9]} 64. Kf5 {[%clk 0:01:25.4]} 64... Kg7
{[%clk 0:00:12.4]} 65. R6h7# {[%clk 0:01:26]} 1-0

[Event "*** Titled Tuesday Blitz"]
[Site "Chess.com"]
[Date "2019.09.03"]
[Round "8"]
[White "popov_m"]
[Black "12teen"]
[Result "1-0"]
[WhiteElo "2632"]
[BlackElo "2741"]
[TimeControl "180+2"]
[EndTime "16:53:24 PDT"]
[Termination "popov_m won by checkmate"]

1. e4 {[%clk 0:03:01.9]} 1... a6 {[%clk 0:03:00.8]} 2. d4 {[%clk 0:03:02.2]}
2... b5 {[%clk 0:03:02.4]} 3. Bd3 {[%clk 0:03:02.7]} 3... Bb7 {[%clk 0:03:03.9]}
4. Qe2 {[%clk 0:02:59.4]} 4... e6 {[%clk 0:03:05.1]} 5. Nf3 {[%clk 0:02:57.1]}
5... Nf6 {[%clk 0:03:06.5]} 6. O-O {[%clk 0:02:56.8]} 6... d5 {[%clk 0:03:07.3]}
7. Nbd2 {[%clk 0:02:56.3]} 7... Be7 {[%clk 0:03:08.2]} 8. e5 {[%clk 0:02:54.3]}
8... Nfd7 {[%clk 0:03:09.3]} 9. c3 {[%clk 0:02:55.8]} 9... c5 {[%clk 0:03:10.9]}
10. Re1 {[%clk 0:02:56.7]} 10... Nc6 {[%clk 0:03:12.4]} 11. Nf1 {[%clk
0:02:57.4]} 11... g5 {[%clk 0:03:14.1]} 12. Be3 {[%clk 0:02:52.2]} 12... h5
{[%clk 0:03:14.7]} 13. N3d2 {[%clk 0:02:50.8]} 13... Qb6 {[%clk 0:03:03.6]} 14.
a4 {[%clk 0:02:48.5]} 14... cxd4 {[%clk 0:02:57.6]} 15. cxd4 {[%clk 0:02:49.6]}
15... b4 {[%clk 0:02:02.2]} 16. Nb3 {[%clk 0:02:48.7]} 16... g4 {[%clk 0:01:57]}
17. a5 {[%clk 0:02:47]} 17... Qd8 {[%clk 0:01:43.2]} 18. Rec1 {[%clk 0:02:47.7]}
18... Rg8 {[%clk 0:01:22.1]} 19. Bc2 {[%clk 0:02:11]} 19... h4 {[%clk
0:01:18.8]} 20. Qd3 {[%clk 0:02:11.8]} 20... Nf8 {[%clk 0:00:52.1]} 21. Bd1
{[%clk 0:02:08.2]} 21... h3 {[%clk 0:00:50.2]} 22. g3 {[%clk 0:02:05.4]} 22...
Ng6 {[%clk 0:00:39.4]} 23. Nc5 {[%clk 0:01:58.7]} 23... Ncxe5 {[%clk 0:00:11]}
24. dxe5 {[%clk 0:01:51.3]} 24... Nxe5 {[%clk 0:00:10.4]} 25. Ba4+ {[%clk
0:01:26.2]} 25... Kf8 {[%clk 0:00:07.3]} 26. Bh6+ {[%clk 0:01:26.3]} 26... Rg7
{[%clk 0:00:08.7]} 27. Qh7 {[%clk 0:01:04.6]} 27... Nf3+ {[%clk 0:00:09.4]} 28.
Kh1 {[%clk 0:01:04.8]} 28... Bf6 {[%clk 0:00:11.3]} 29. Nxb7 {[%clk 0:00:57.1]}
29... Qb8 {[%clk 0:00:12.7]} 30. Qh8+ {[%clk 0:00:47.4]} 30... Ke7 {[%clk
0:00:14]} 31. Qxb8 {[%clk 0:00:47.2]} 31... Rxb8 {[%clk 0:00:14.9]} 32. Rc7+
{[%clk 0:00:43.8]} 32... Kf8 {[%clk 0:00:16.2]} 33. Bxg7+ {[%clk 0:00:39.5]}
33... Kxg7 {[%clk 0:00:17.1]} 34. Ne3 {[%clk 0:00:21.4]} 34... Bxb2 {[%clk
0:00:17]} 35. Rb1 {[%clk 0:00:22.5]} 35... Bc3 {[%clk 0:00:17.6]} 36. Nxg4
{[%clk 0:00:21.2]} 36... Kg6 {[%clk 0:00:18.3]} 37. Bc2+ {[%clk 0:00:15.8]}
37... f5 {[%clk 0:00:19.6]} 38. Ne3 {[%clk 0:00:15.4]} 38... d4 {[%clk
0:00:19.3]} 39. Nc4 {[%clk 0:00:15.4]} 39... Rd8 {[%clk 0:00:20.1]} 40. Nbd6
{[%clk 0:00:14.1]} 40... Kf6 {[%clk 0:00:15.3]} 41. Bd1 {[%clk 0:00:12.3]} 41...
Ng5 {[%clk 0:00:14.3]} 42. f4 {[%clk 0:00:12.1]} 42... Ne4 {[%clk 0:00:13.4]}
43. Nxe4+ {[%clk 0:00:11.1]} 43... fxe4 {[%clk 0:00:15.3]} 44. Bh5 {[%clk
0:00:10.8]} 44... e5 {[%clk 0:00:12.3]} 45. fxe5+ {[%clk 0:00:09.9]} 45... Ke6
{[%clk 0:00:13.9]} 46. Rf1 {[%clk 0:00:08.9]} 46... d3 {[%clk 0:00:12.4]} 47.
Bf7# {[%clk 0:00:09.8]} 1-0

[Event "*** Titled Tuesday Blitz"]
[Site "Chess.com"]
[Date "2019.09.03"]
[Round "8"]
[White "13MiRacLe"]
[Black "Walter_White_Poland"]
[Result "1-0"]
[WhiteElo "2682"]
[BlackElo "2327"]
[TimeControl "180+2"]
[EndTime "16:53:41 PDT"]
[Termination "13MiRacLe won on time"]

1. e4 {[%clk 0:03:01.9]} 1... e5 {[%clk 0:03:00.1]} 2. Nf3 {[%clk 0:03:02.6]}
2... Nc6 {[%clk 0:03:01.1]} 3. Bb5 {[%clk 0:03:03.4]} 3... a6 {[%clk 0:03:01.3]}
4. Ba4 {[%clk 0:03:02.9]} 4... Nf6 {[%clk 0:03:02.1]} 5. O-O {[%clk 0:03:03.5]}
5... b5 {[%clk 0:03:03.1]} 6. Bb3 {[%clk 0:03:04.1]} 6... Be7 {[%clk 0:03:04.3]}
7. d3 {[%clk 0:03:04.9]} 7... d6 {[%clk 0:03:03.4]} 8. a4 {[%clk 0:03:06]} 8...
Bg4 {[%clk 0:02:53]} 9. c3 {[%clk 0:03:03.5]} 9... O-O {[%clk 0:02:49.6]} 10. h3
{[%clk 0:03:04.5]} 10... Be6 {[%clk 0:02:47.2]} 11. Bc2 {[%clk 0:02:55.1]} 11...
d5 {[%clk 0:02:37.8]} 12. exd5 {[%clk 0:02:48.9]} 12... Nxd5 {[%clk 0:02:30.8]}
13. Re1 {[%clk 0:02:49.8]} 13... Bf6 {[%clk 0:02:13.3]} 14. Nbd2 {[%clk
0:02:40.7]} 14... Bf5 {[%clk 0:01:52.1]} 15. Ne4 {[%clk 0:02:39.3]} 15... Bxe4
{[%clk 0:01:51.8]} 16. dxe4 {[%clk 0:02:39.9]} 16... Nb6 {[%clk 0:01:19.1]} 17.
axb5 {[%clk 0:02:33.2]} 17... axb5 {[%clk 0:01:17.7]} 18. Rxa8 {[%clk
0:02:33.3]} 18... Qxa8 {[%clk 0:01:16.5]} 19. Bb3 {[%clk 0:02:17.7]} 19... Na5
{[%clk 0:01:13.6]} 20. Be3 {[%clk 0:02:10.1]} 20... Nbc4 {[%clk 0:01:09.4]} 21.
Bxc4 {[%clk 0:01:51.2]} 21... Nxc4 {[%clk 0:01:06.6]} 22. b3 {[%clk 0:01:51.2]}
22... Rd8 {[%clk 0:00:58.9]} 23. Qc1 {[%clk 0:01:44.9]} 23... Nd6 {[%clk
0:00:26.3]} 24. Bg5 {[%clk 0:01:13.3]} 24... Nxe4 {[%clk 0:00:26.7]} 25. Bxf6
{[%clk 0:01:12.2]} 25... Nxf6 {[%clk 0:00:25]} 26. Nxe5 {[%clk 0:01:04.5]} 26...
Qd5 {[%clk 0:00:25.7]} 27. c4 {[%clk 0:01:00.4]} 27... bxc4 {[%clk 0:00:24.3]}
28. bxc4 {[%clk 0:01:01.2]} 28... Qd2 {[%clk 0:00:21.9]} 29. Qxd2 {[%clk
0:00:47.5]} 29... Rxd2 {[%clk 0:00:22.2]} 30. Ra1 {[%clk 0:00:49.4]} 30... g6
{[%clk 0:00:18.3]} 31. Ra8+ {[%clk 0:00:41.1]} 31... Kg7 {[%clk 0:00:18.8]} 32.
Rc8 {[%clk 0:00:42.6]} 32... Re2 {[%clk 0:00:17.3]} 33. f4 {[%clk 0:00:38.3]}
33... Nh5 {[%clk 0:00:16.6]} 34. Rxc7 {[%clk 0:00:38.1]} 34... Nxf4 {[%clk
0:00:17.5]} 35. Rxf7+ {[%clk 0:00:38.9]} 35... Kg8 {[%clk 0:00:17.8]} 36. Rxf4
{[%clk 0:00:36.9]} 36... Rxe5 {[%clk 0:00:18.7]} 37. Kf2 {[%clk 0:00:38.5]}
37... Kg7 {[%clk 0:00:15.3]} 38. h4 {[%clk 0:00:36]} 38... h5 {[%clk 0:00:15.7]}
39. Kf3 {[%clk 0:00:36.5]} 39... Re1 {[%clk 0:00:16]} 40. Re4 {[%clk 0:00:33]}
40... Rc1 {[%clk 0:00:16.3]} 41. Ke3 {[%clk 0:00:26.7]} 41... Rc2 {[%clk
0:00:15.9]} 42. g4 {[%clk 0:00:25.6]} 42... hxg4 {[%clk 0:00:14.4]} 43. Rxg4
{[%clk 0:00:27.5]} 43... Kh6 {[%clk 0:00:15.6]} 44. Kd4 {[%clk 0:00:27.5]} 44...
Kh5 {[%clk 0:00:16.1]} 45. Re4 {[%clk 0:00:28.6]} 45... Kh6 {[%clk 0:00:05.1]}
46. c5 {[%clk 0:00:26.6]} 46... Kg7 {[%clk 0:00:06.1]} 47. Rf4 {[%clk
0:00:27.8]} 47... Rd2+ {[%clk 0:00:04.3]} 48. Kc4 {[%clk 0:00:26.6]} 48... Rc2+
{[%clk 0:00:02.4]} 49. Kb5 {[%clk 0:00:27.3]} 1-0